{"text_format":"1","workbook":"xlsx","n_sheets":5,"sheets":["بيانات رئيسية","1-JAN","2-JAN","3-JAN","4-JAN"],"not_rendered":{"charts":0,"images":0,"macros":1,"external_links":0,"defined_names":15,"comments":0,"pivot_tables":0},"unopened":[],"bounds":{"document_bytes":16777216,"sheet_cells":100000,"rows_first":2000,"rows_last":500,"rows_between":2000,"halvings":0,"cell_chars":16384,"cell_head_chars":4096},"cells_cut":0,"cells_raw":0,"read":"whole","date_system":"1900"}

{"sheet":"بيانات رئيسية","index":0,"n_rows":7,"n_cols":4,"rows_kept":7,"cut":false,"hidden":false,"merged":[]}
["التاريخ","الكود","الزبون","المبلغ الكلي"]
["2024-01-01",5566,"شركة الغذائيات",15000000]
["2024-01-01",9988,"شركة الفجر",3000000]
["2024-01-01",7788,"مكتب السلام",2250000]
["2024-01-02",4455,"مكتب العراق",6500000]
["2024-01-03",2233,"الشركة العربية",7500000]
["2024-01-04",1188,"الشركة المتحدة",9450000]

{"sheet":"1-JAN","index":1,"n_rows":30,"n_cols":5,"rows_kept":30,"cut":false,"hidden":false,"merged":[]}
["كود الزبون","الزبون","المبلغ",null,"2024-01-01"]
[5566,{"$f":"IF(Khorsheed27280368070[[#This Row],[كود الزبون]]=\"\",\"\",INDEX('بيانات رئيسية'!C:C,MATCH(1,('بيانات رئيسية'!A:A=$E$1)*('بيانات رئيسية'!B:B=Khorsheed27280368070[[#This Row],[كود الزبون]]),0)))","v":"شركة الغذائيات"},{"$f":"IF(Khorsheed27280368070[[#This Row],[كود الزبون]]=\"\",\"\",SUMIFS('بيانات رئيسية'!D:D,'بيانات رئيسية'!A:A,$E$1,'بيانات رئيسية'!B:B,Khorsheed27280368070[[#This Row],[كود الزبون]]))","v":15000000}]
[9988,{"$f":"IF(Khorsheed27280368070[[#This Row],[كود الزبون]]=\"\",\"\",INDEX('بيانات رئيسية'!C:C,MATCH(1,('بيانات رئيسية'!A:A=$E$1)*('بيانات رئيسية'!B:B=Khorsheed27280368070[[#This Row],[كود الزبون]]),0)))","v":"شركة الفجر"},{"$f":"IF(Khorsheed27280368070[[#This Row],[كود الزبون]]=\"\",\"\",SUMIFS('بيانات رئيسية'!D:D,'بيانات رئيسية'!A:A,$E$1,'بيانات رئيسية'!B:B,Khorsheed27280368070[[#This Row],[كود الزبون]]))","v":3000000}]
[7788,{"$f":"IF(Khorsheed27280368070[[#This Row],[كود الزبون]]=\"\",\"\",INDEX('بيانات رئيسية'!C:C,MATCH(1,('بيانات رئيسية'!A:A=$E$1)*('بيانات رئيسية'!B:B=Khorsheed27280368070[[#This Row],[كود الزبون]]),0)))","v":"مكتب السلام"},{"$f":"IF(Khorsheed27280368070[[#This Row],[كود الزبون]]=\"\",\"\",SUMIFS('بيانات رئيسية'!D:D,'بيانات رئيسية'!A:A,$E$1,'بيانات رئيسية'!B:B,Khorsheed27280368070[[#This Row],[كود الزبون]]))","v":2250000}]
[null,{"$f":"IF(Khorsheed27280368070[[#This Row],[كود الزبون]]=\"\",\"\",INDEX('بيانات رئيسية'!C:C,MATCH(1,('بيانات رئيسية'!A:A=$E$1)*('بيانات رئيسية'!B:B=Khorsheed27280368070[[#This Row],[كود الزبون]]),0)))","v":""},{"$f":"IF(Khorsheed27280368070[[#This Row],[كود الزبون]]=\"\",\"\",SUMIFS('بيانات رئيسية'!D:D,'بيانات رئيسية'!A:A,$E$1,'بيانات رئيسية'!B:B,Khorsheed27280368070[[#This Row],[كود الزبون]]))","v":""}]
[null,{"$f":"IF(Khorsheed27280368070[[#This Row],[كود الزبون]]=\"\",\"\",INDEX('بيانات رئيسية'!C:C,MATCH(1,('بيانات رئيسية'!A:A=$E$1)*('بيانات رئيسية'!B:B=Khorsheed27280368070[[#This Row],[كود الزبون]]),0)))","v":""},{"$f":"IF(Khorsheed27280368070[[#This Row],[كود الزبون]]=\"\",\"\",SUMIFS('بيانات رئيسية'!D:D,'بيانات رئيسية'!A:A,$E$1,'بيانات رئيسية'!B:B,Khorsheed27280368070[[#This Row],[كود الزبون]]))","v":""}]
[null,{"$f":"IF(Khorsheed27280368070[[#This Row],[كود الزبون]]=\"\",\"\",INDEX('بيانات رئيسية'!C:C,MATCH(1,('بيانات رئيسية'!A:A=$E$1)*('بيانات رئيسية'!B:B=Khorsheed27280368070[[#This Row],[كود الزبون]]),0)))","v":""},{"$f":"IF(Khorsheed27280368070[[#This Row],[كود الزبون]]=\"\",\"\",SUMIFS('بيانات رئيسية'!D:D,'بيانات رئيسية'!A:A,$E$1,'بيانات رئيسية'!B:B,Khorsheed27280368070[[#This Row],[كود الزبون]]))","v":""}]
[null,{"$f":"IF(Khorsheed27280368070[[#This Row],[كود الزبون]]=\"\",\"\",INDEX('بيانات رئيسية'!C:C,MATCH(1,('بيانات رئيسية'!A:A=$E$1)*('بيانات رئيسية'!B:B=Khorsheed27280368070[[#This Row],[كود الزبون]]),0)))","v":""},{"$f":"IF(Khorsheed27280368070[[#This Row],[كود الزبون]]=\"\",\"\",SUMIFS('بيانات رئيسية'!D:D,'بيانات رئيسية'!A:A,$E$1,'بيانات رئيسية'!B:B,Khorsheed27280368070[[#This Row],[كود الزبون]]))","v":""}]
[null,{"$f":"IF(Khorsheed27280368070[[#This Row],[كود الزبون]]=\"\",\"\",INDEX('بيانات رئيسية'!C:C,MATCH(1,('بيانات رئيسية'!A:A=$E$1)*('بيانات رئيسية'!B:B=Khorsheed27280368070[[#This Row],[كود الزبون]]),0)))","v":""},{"$f":"IF(Khorsheed27280368070[[#This Row],[كود الزبون]]=\"\",\"\",SUMIFS('بيانات رئيسية'!D:D,'بيانات رئيسية'!A:A,$E$1,'بيانات رئيسية'!B:B,Khorsheed27280368070[[#This Row],[كود الزبون]]))","v":""}]
[null,{"$f":"IF(Khorsheed27280368070[[#This Row],[كود الزبون]]=\"\",\"\",INDEX('بيانات رئيسية'!C:C,MATCH(1,('بيانات رئيسية'!A:A=$E$1)*('بيانات رئيسية'!B:B=Khorsheed27280368070[[#This Row],[كود الزبون]]),0)))","v":""},{"$f":"IF(Khorsheed27280368070[[#This Row],[كود الزبون]]=\"\",\"\",SUMIFS('بيانات رئيسية'!D:D,'بيانات رئيسية'!A:A,$E$1,'بيانات رئيسية'!B:B,Khorsheed27280368070[[#This Row],[كود الزبون]]))","v":""}]
[null,{"$f":"IF(Khorsheed27280368070[[#This Row],[كود الزبون]]=\"\",\"\",INDEX('بيانات رئيسية'!C:C,MATCH(1,('بيانات رئيسية'!A:A=$E$1)*('بيانات رئيسية'!B:B=Khorsheed27280368070[[#This Row],[كود الزبون]]),0)))","v":""},{"$f":"IF(Khorsheed27280368070[[#This Row],[كود الزبون]]=\"\",\"\",SUMIFS('بيانات رئيسية'!D:D,'بيانات رئيسية'!A:A,$E$1,'بيانات رئيسية'!B:B,Khorsheed27280368070[[#This Row],[كود الزبون]]))","v":""}]
[null,{"$f":"IF(Khorsheed27280368070[[#This Row],[كود الزبون]]=\"\",\"\",INDEX('بيانات رئيسية'!C:C,MATCH(1,('بيانات رئيسية'!A:A=$E$1)*('بيانات رئيسية'!B:B=Khorsheed27280368070[[#This Row],[كود الزبون]]),0)))","v":""},{"$f":"IF(Khorsheed27280368070[[#This Row],[كود الزبون]]=\"\",\"\",SUMIFS('بيانات رئيسية'!D:D,'بيانات رئيسية'!A:A,$E$1,'بيانات رئيسية'!B:B,Khorsheed27280368070[[#This Row],[كود الزبون]]))","v":""}]
[null,{"$f":"IF(Khorsheed27280368070[[#This Row],[كود الزبون]]=\"\",\"\",INDEX('بيانات رئيسية'!C:C,MATCH(1,('بيانات رئيسية'!A:A=$E$1)*('بيانات رئيسية'!B:B=Khorsheed27280368070[[#This Row],[كود الزبون]]),0)))","v":""},{"$f":"IF(Khorsheed27280368070[[#This Row],[كود الزبون]]=\"\",\"\",SUMIFS('بيانات رئيسية'!D:D,'بيانات رئيسية'!A:A,$E$1,'بيانات رئيسية'!B:B,Khorsheed27280368070[[#This Row],[كود الزبون]]))","v":""}]
[null,{"$f":"IF(Khorsheed27280368070[[#This Row],[كود الزبون]]=\"\",\"\",INDEX('بيانات رئيسية'!C:C,MATCH(1,('بيانات رئيسية'!A:A=$E$1)*('بيانات رئيسية'!B:B=Khorsheed27280368070[[#This Row],[كود الزبون]]),0)))","v":""},{"$f":"IF(Khorsheed27280368070[[#This Row],[كود الزبون]]=\"\",\"\",SUMIFS('بيانات رئيسية'!D:D,'بيانات رئيسية'!A:A,$E$1,'بيانات رئيسية'!B:B,Khorsheed27280368070[[#This Row],[كود الزبون]]))","v":""}]
[null,{"$f":"IF(Khorsheed27280368070[[#This Row],[كود الزبون]]=\"\",\"\",INDEX('بيانات رئيسية'!C:C,MATCH(1,('بيانات رئيسية'!A:A=$E$1)*('بيانات رئيسية'!B:B=Khorsheed27280368070[[#This Row],[كود الزبون]]),0)))","v":""},{"$f":"IF(Khorsheed27280368070[[#This Row],[كود الزبون]]=\"\",\"\",SUMIFS('بيانات رئيسية'!D:D,'بيانات رئيسية'!A:A,$E$1,'بيانات رئيسية'!B:B,Khorsheed27280368070[[#This Row],[كود الزبون]]))","v":""}]
[null,{"$f":"IF(Khorsheed27280368070[[#This Row],[كود الزبون]]=\"\",\"\",INDEX('بيانات رئيسية'!C:C,MATCH(1,('بيانات رئيسية'!A:A=$E$1)*('بيانات رئيسية'!B:B=Khorsheed27280368070[[#This Row],[كود الزبون]]),0)))","v":""},{"$f":"IF(Khorsheed27280368070[[#This Row],[كود الزبون]]=\"\",\"\",SUMIFS('بيانات رئيسية'!D:D,'بيانات رئيسية'!A:A,$E$1,'بيانات رئيسية'!B:B,Khorsheed27280368070[[#This Row],[كود الزبون]]))","v":""}]
[null,{"$f":"IF(Khorsheed27280368070[[#This Row],[كود الزبون]]=\"\",\"\",INDEX('بيانات رئيسية'!C:C,MATCH(1,('بيانات رئيسية'!A:A=$E$1)*('بيانات رئيسية'!B:B=Khorsheed27280368070[[#This Row],[كود الزبون]]),0)))","v":""},{"$f":"IF(Khorsheed27280368070[[#This Row],[كود الزبون]]=\"\",\"\",SUMIFS('بيانات رئيسية'!D:D,'بيانات رئيسية'!A:A,$E$1,'بيانات رئيسية'!B:B,Khorsheed27280368070[[#This Row],[كود الزبون]]))","v":""}]
[null,{"$f":"IF(Khorsheed27280368070[[#This Row],[كود الزبون]]=\"\",\"\",INDEX('بيانات رئيسية'!C:C,MATCH(1,('بيانات رئيسية'!A:A=$E$1)*('بيانات رئيسية'!B:B=Khorsheed27280368070[[#This Row],[كود الزبون]]),0)))","v":""},{"$f":"IF(Khorsheed27280368070[[#This Row],[كود الزبون]]=\"\",\"\",SUMIFS('بيانات رئيسية'!D:D,'بيانات رئيسية'!A:A,$E$1,'بيانات رئيسية'!B:B,Khorsheed27280368070[[#This Row],[كود الزبون]]))","v":""}]
[null,{"$f":"IF(Khorsheed27280368070[[#This Row],[كود الزبون]]=\"\",\"\",INDEX('بيانات رئيسية'!C:C,MATCH(1,('بيانات رئيسية'!A:A=$E$1)*('بيانات رئيسية'!B:B=Khorsheed27280368070[[#This Row],[كود الزبون]]),0)))","v":""},{"$f":"IF(Khorsheed27280368070[[#This Row],[كود الزبون]]=\"\",\"\",SUMIFS('بيانات رئيسية'!D:D,'بيانات رئيسية'!A:A,$E$1,'بيانات رئيسية'!B:B,Khorsheed27280368070[[#This Row],[كود الزبون]]))","v":""}]
[null,{"$f":"IF(Khorsheed27280368070[[#This Row],[كود الزبون]]=\"\",\"\",INDEX('بيانات رئيسية'!C:C,MATCH(1,('بيانات رئيسية'!A:A=$E$1)*('بيانات رئيسية'!B:B=Khorsheed27280368070[[#This Row],[كود الزبون]]),0)))","v":""},{"$f":"IF(Khorsheed27280368070[[#This Row],[كود الزبون]]=\"\",\"\",SUMIFS('بيانات رئيسية'!D:D,'بيانات رئيسية'!A:A,$E$1,'بيانات رئيسية'!B:B,Khorsheed27280368070[[#This Row],[كود الزبون]]))","v":""}]
[null,{"$f":"IF(Khorsheed27280368070[[#This Row],[كود الزبون]]=\"\",\"\",INDEX('بيانات رئيسية'!C:C,MATCH(1,('بيانات رئيسية'!A:A=$E$1)*('بيانات رئيسية'!B:B=Khorsheed27280368070[[#This Row],[كود الزبون]]),0)))","v":""},{"$f":"IF(Khorsheed27280368070[[#This Row],[كود الزبون]]=\"\",\"\",SUMIFS('بيانات رئيسية'!D:D,'بيانات رئيسية'!A:A,$E$1,'بيانات رئيسية'!B:B,Khorsheed27280368070[[#This Row],[كود الزبون]]))","v":""}]
[null,{"$f":"IF(Khorsheed27280368070[[#This Row],[كود الزبون]]=\"\",\"\",INDEX('بيانات رئيسية'!C:C,MATCH(1,('بيانات رئيسية'!A:A=$E$1)*('بيانات رئيسية'!B:B=Khorsheed27280368070[[#This Row],[كود الزبون]]),0)))","v":""},{"$f":"IF(Khorsheed27280368070[[#This Row],[كود الزبون]]=\"\",\"\",SUMIFS('بيانات رئيسية'!D:D,'بيانات رئيسية'!A:A,$E$1,'بيانات رئيسية'!B:B,Khorsheed27280368070[[#This Row],[كود الزبون]]))","v":""}]
[null,{"$f":"IF(Khorsheed27280368070[[#This Row],[كود الزبون]]=\"\",\"\",INDEX('بيانات رئيسية'!C:C,MATCH(1,('بيانات رئيسية'!A:A=$E$1)*('بيانات رئيسية'!B:B=Khorsheed27280368070[[#This Row],[كود الزبون]]),0)))","v":""},{"$f":"IF(Khorsheed27280368070[[#This Row],[كود الزبون]]=\"\",\"\",SUMIFS('بيانات رئيسية'!D:D,'بيانات رئيسية'!A:A,$E$1,'بيانات رئيسية'!B:B,Khorsheed27280368070[[#This Row],[كود الزبون]]))","v":""}]
[null,{"$f":"IF(Khorsheed27280368070[[#This Row],[كود الزبون]]=\"\",\"\",INDEX('بيانات رئيسية'!C:C,MATCH(1,('بيانات رئيسية'!A:A=$E$1)*('بيانات رئيسية'!B:B=Khorsheed27280368070[[#This Row],[كود الزبون]]),0)))","v":""},{"$f":"IF(Khorsheed27280368070[[#This Row],[كود الزبون]]=\"\",\"\",SUMIFS('بيانات رئيسية'!D:D,'بيانات رئيسية'!A:A,$E$1,'بيانات رئيسية'!B:B,Khorsheed27280368070[[#This Row],[كود الزبون]]))","v":""}]
[null,{"$f":"IF(Khorsheed27280368070[[#This Row],[كود الزبون]]=\"\",\"\",INDEX('بيانات رئيسية'!C:C,MATCH(1,('بيانات رئيسية'!A:A=$E$1)*('بيانات رئيسية'!B:B=Khorsheed27280368070[[#This Row],[كود الزبون]]),0)))","v":""},{"$f":"IF(Khorsheed27280368070[[#This Row],[كود الزبون]]=\"\",\"\",SUMIFS('بيانات رئيسية'!D:D,'بيانات رئيسية'!A:A,$E$1,'بيانات رئيسية'!B:B,Khorsheed27280368070[[#This Row],[كود الزبون]]))","v":""}]
[null,{"$f":"IF(Khorsheed27280368070[[#This Row],[كود الزبون]]=\"\",\"\",INDEX('بيانات رئيسية'!C:C,MATCH(1,('بيانات رئيسية'!A:A=$E$1)*('بيانات رئيسية'!B:B=Khorsheed27280368070[[#This Row],[كود الزبون]]),0)))","v":""},{"$f":"IF(Khorsheed27280368070[[#This Row],[كود الزبون]]=\"\",\"\",SUMIFS('بيانات رئيسية'!D:D,'بيانات رئيسية'!A:A,$E$1,'بيانات رئيسية'!B:B,Khorsheed27280368070[[#This Row],[كود الزبون]]))","v":""}]
[null,{"$f":"IF(Khorsheed27280368070[[#This Row],[كود الزبون]]=\"\",\"\",INDEX('بيانات رئيسية'!C:C,MATCH(1,('بيانات رئيسية'!A:A=$E$1)*('بيانات رئيسية'!B:B=Khorsheed27280368070[[#This Row],[كود الزبون]]),0)))","v":""},{"$f":"IF(Khorsheed27280368070[[#This Row],[كود الزبون]]=\"\",\"\",SUMIFS('بيانات رئيسية'!D:D,'بيانات رئيسية'!A:A,$E$1,'بيانات رئيسية'!B:B,Khorsheed27280368070[[#This Row],[كود الزبون]]))","v":""}]
[null,{"$f":"IF(Khorsheed27280368070[[#This Row],[كود الزبون]]=\"\",\"\",INDEX('بيانات رئيسية'!C:C,MATCH(1,('بيانات رئيسية'!A:A=$E$1)*('بيانات رئيسية'!B:B=Khorsheed27280368070[[#This Row],[كود الزبون]]),0)))","v":""},{"$f":"IF(Khorsheed27280368070[[#This Row],[كود الزبون]]=\"\",\"\",SUMIFS('بيانات رئيسية'!D:D,'بيانات رئيسية'!A:A,$E$1,'بيانات رئيسية'!B:B,Khorsheed27280368070[[#This Row],[كود الزبون]]))","v":""}]
[null,{"$f":"IF(Khorsheed27280368070[[#This Row],[كود الزبون]]=\"\",\"\",INDEX('بيانات رئيسية'!C:C,MATCH(1,('بيانات رئيسية'!A:A=$E$1)*('بيانات رئيسية'!B:B=Khorsheed27280368070[[#This Row],[كود الزبون]]),0)))","v":""},{"$f":"IF(Khorsheed27280368070[[#This Row],[كود الزبون]]=\"\",\"\",SUMIFS('بيانات رئيسية'!D:D,'بيانات رئيسية'!A:A,$E$1,'بيانات رئيسية'!B:B,Khorsheed27280368070[[#This Row],[كود الزبون]]))","v":""}]
["الإجمالي",null,{"$f":"SUBTOTAL(109,Khorsheed27280368070[المبلغ])","v":20250000}]

{"sheet":"2-JAN","index":2,"n_rows":30,"n_cols":5,"rows_kept":30,"cut":false,"hidden":false,"merged":[]}
["كود الزبون","الزبون","المبلغ",null,"2024-01-02"]
[4455,{"$f":"IF(Khorsheed272803680702[[#This Row],[كود الزبون]]=\"\",\"\",INDEX('بيانات رئيسية'!C:C,MATCH(1,('بيانات رئيسية'!A:A=$E$1)*('بيانات رئيسية'!B:B=Khorsheed272803680702[[#This Row],[كود الزبون]]),0)))","v":"مكتب العراق"},{"$f":"IF(Khorsheed272803680702[[#This Row],[كود الزبون]]=\"\",\"\",SUMIFS('بيانات رئيسية'!D:D,'بيانات رئيسية'!A:A,$E$1,'بيانات رئيسية'!B:B,Khorsheed272803680702[[#This Row],[كود الزبون]]))","v":6500000}]
[null,{"$f":"IF(Khorsheed272803680702[[#This Row],[كود الزبون]]=\"\",\"\",INDEX('بيانات رئيسية'!C:C,MATCH(1,('بيانات رئيسية'!A:A=$E$1)*('بيانات رئيسية'!B:B=Khorsheed272803680702[[#This Row],[كود الزبون]]),0)))","v":""},{"$f":"IF(Khorsheed272803680702[[#This Row],[كود الزبون]]=\"\",\"\",SUMIFS('بيانات رئيسية'!D:D,'بيانات رئيسية'!A:A,$E$1,'بيانات رئيسية'!B:B,Khorsheed272803680702[[#This Row],[كود الزبون]]))","v":""}]
[null,{"$f":"IF(Khorsheed272803680702[[#This Row],[كود الزبون]]=\"\",\"\",INDEX('بيانات رئيسية'!C:C,MATCH(1,('بيانات رئيسية'!A:A=$E$1)*('بيانات رئيسية'!B:B=Khorsheed272803680702[[#This Row],[كود الزبون]]),0)))","v":""},{"$f":"IF(Khorsheed272803680702[[#This Row],[كود الزبون]]=\"\",\"\",SUMIFS('بيانات رئيسية'!D:D,'بيانات رئيسية'!A:A,$E$1,'بيانات رئيسية'!B:B,Khorsheed272803680702[[#This Row],[كود الزبون]]))","v":""}]
[null,{"$f":"IF(Khorsheed272803680702[[#This Row],[كود الزبون]]=\"\",\"\",INDEX('بيانات رئيسية'!C:C,MATCH(1,('بيانات رئيسية'!A:A=$E$1)*('بيانات رئيسية'!B:B=Khorsheed272803680702[[#This Row],[كود الزبون]]),0)))","v":""},{"$f":"IF(Khorsheed272803680702[[#This Row],[كود الزبون]]=\"\",\"\",SUMIFS('بيانات رئيسية'!D:D,'بيانات رئيسية'!A:A,$E$1,'بيانات رئيسية'!B:B,Khorsheed272803680702[[#This Row],[كود الزبون]]))","v":""}]
[null,{"$f":"IF(Khorsheed272803680702[[#This Row],[كود الزبون]]=\"\",\"\",INDEX('بيانات رئيسية'!C:C,MATCH(1,('بيانات رئيسية'!A:A=$E$1)*('بيانات رئيسية'!B:B=Khorsheed272803680702[[#This Row],[كود الزبون]]),0)))","v":""},{"$f":"IF(Khorsheed272803680702[[#This Row],[كود الزبون]]=\"\",\"\",SUMIFS('بيانات رئيسية'!D:D,'بيانات رئيسية'!A:A,$E$1,'بيانات رئيسية'!B:B,Khorsheed272803680702[[#This Row],[كود الزبون]]))","v":""}]
[null,{"$f":"IF(Khorsheed272803680702[[#This Row],[كود الزبون]]=\"\",\"\",INDEX('بيانات رئيسية'!C:C,MATCH(1,('بيانات رئيسية'!A:A=$E$1)*('بيانات رئيسية'!B:B=Khorsheed272803680702[[#This Row],[كود الزبون]]),0)))","v":""},{"$f":"IF(Khorsheed272803680702[[#This Row],[كود الزبون]]=\"\",\"\",SUMIFS('بيانات رئيسية'!D:D,'بيانات رئيسية'!A:A,$E$1,'بيانات رئيسية'!B:B,Khorsheed272803680702[[#This Row],[كود الزبون]]))","v":""}]
[null,{"$f":"IF(Khorsheed272803680702[[#This Row],[كود الزبون]]=\"\",\"\",INDEX('بيانات رئيسية'!C:C,MATCH(1,('بيانات رئيسية'!A:A=$E$1)*('بيانات رئيسية'!B:B=Khorsheed272803680702[[#This Row],[كود الزبون]]),0)))","v":""},{"$f":"IF(Khorsheed272803680702[[#This Row],[كود الزبون]]=\"\",\"\",SUMIFS('بيانات رئيسية'!D:D,'بيانات رئيسية'!A:A,$E$1,'بيانات رئيسية'!B:B,Khorsheed272803680702[[#This Row],[كود الزبون]]))","v":""}]
[null,{"$f":"IF(Khorsheed272803680702[[#This Row],[كود الزبون]]=\"\",\"\",INDEX('بيانات رئيسية'!C:C,MATCH(1,('بيانات رئيسية'!A:A=$E$1)*('بيانات رئيسية'!B:B=Khorsheed272803680702[[#This Row],[كود الزبون]]),0)))","v":""},{"$f":"IF(Khorsheed272803680702[[#This Row],[كود الزبون]]=\"\",\"\",SUMIFS('بيانات رئيسية'!D:D,'بيانات رئيسية'!A:A,$E$1,'بيانات رئيسية'!B:B,Khorsheed272803680702[[#This Row],[كود الزبون]]))","v":""}]
[null,{"$f":"IF(Khorsheed272803680702[[#This Row],[كود الزبون]]=\"\",\"\",INDEX('بيانات رئيسية'!C:C,MATCH(1,('بيانات رئيسية'!A:A=$E$1)*('بيانات رئيسية'!B:B=Khorsheed272803680702[[#This Row],[كود الزبون]]),0)))","v":""},{"$f":"IF(Khorsheed272803680702[[#This Row],[كود الزبون]]=\"\",\"\",SUMIFS('بيانات رئيسية'!D:D,'بيانات رئيسية'!A:A,$E$1,'بيانات رئيسية'!B:B,Khorsheed272803680702[[#This Row],[كود الزبون]]))","v":""}]
[null,{"$f":"IF(Khorsheed272803680702[[#This Row],[كود الزبون]]=\"\",\"\",INDEX('بيانات رئيسية'!C:C,MATCH(1,('بيانات رئيسية'!A:A=$E$1)*('بيانات رئيسية'!B:B=Khorsheed272803680702[[#This Row],[كود الزبون]]),0)))","v":""},{"$f":"IF(Khorsheed272803680702[[#This Row],[كود الزبون]]=\"\",\"\",SUMIFS('بيانات رئيسية'!D:D,'بيانات رئيسية'!A:A,$E$1,'بيانات رئيسية'!B:B,Khorsheed272803680702[[#This Row],[كود الزبون]]))","v":""}]
[null,{"$f":"IF(Khorsheed272803680702[[#This Row],[كود الزبون]]=\"\",\"\",INDEX('بيانات رئيسية'!C:C,MATCH(1,('بيانات رئيسية'!A:A=$E$1)*('بيانات رئيسية'!B:B=Khorsheed272803680702[[#This Row],[كود الزبون]]),0)))","v":""},{"$f":"IF(Khorsheed272803680702[[#This Row],[كود الزبون]]=\"\",\"\",SUMIFS('بيانات رئيسية'!D:D,'بيانات رئيسية'!A:A,$E$1,'بيانات رئيسية'!B:B,Khorsheed272803680702[[#This Row],[كود الزبون]]))","v":""}]
[null,{"$f":"IF(Khorsheed272803680702[[#This Row],[كود الزبون]]=\"\",\"\",INDEX('بيانات رئيسية'!C:C,MATCH(1,('بيانات رئيسية'!A:A=$E$1)*('بيانات رئيسية'!B:B=Khorsheed272803680702[[#This Row],[كود الزبون]]),0)))","v":""},{"$f":"IF(Khorsheed272803680702[[#This Row],[كود الزبون]]=\"\",\"\",SUMIFS('بيانات رئيسية'!D:D,'بيانات رئيسية'!A:A,$E$1,'بيانات رئيسية'!B:B,Khorsheed272803680702[[#This Row],[كود الزبون]]))","v":""}]
[null,{"$f":"IF(Khorsheed272803680702[[#This Row],[كود الزبون]]=\"\",\"\",INDEX('بيانات رئيسية'!C:C,MATCH(1,('بيانات رئيسية'!A:A=$E$1)*('بيانات رئيسية'!B:B=Khorsheed272803680702[[#This Row],[كود الزبون]]),0)))","v":""},{"$f":"IF(Khorsheed272803680702[[#This Row],[كود الزبون]]=\"\",\"\",SUMIFS('بيانات رئيسية'!D:D,'بيانات رئيسية'!A:A,$E$1,'بيانات رئيسية'!B:B,Khorsheed272803680702[[#This Row],[كود الزبون]]))","v":""}]
[null,{"$f":"IF(Khorsheed272803680702[[#This Row],[كود الزبون]]=\"\",\"\",INDEX('بيانات رئيسية'!C:C,MATCH(1,('بيانات رئيسية'!A:A=$E$1)*('بيانات رئيسية'!B:B=Khorsheed272803680702[[#This Row],[كود الزبون]]),0)))","v":""},{"$f":"IF(Khorsheed272803680702[[#This Row],[كود الزبون]]=\"\",\"\",SUMIFS('بيانات رئيسية'!D:D,'بيانات رئيسية'!A:A,$E$1,'بيانات رئيسية'!B:B,Khorsheed272803680702[[#This Row],[كود الزبون]]))","v":""}]
[null,{"$f":"IF(Khorsheed272803680702[[#This Row],[كود الزبون]]=\"\",\"\",INDEX('بيانات رئيسية'!C:C,MATCH(1,('بيانات رئيسية'!A:A=$E$1)*('بيانات رئيسية'!B:B=Khorsheed272803680702[[#This Row],[كود الزبون]]),0)))","v":""},{"$f":"IF(Khorsheed272803680702[[#This Row],[كود الزبون]]=\"\",\"\",SUMIFS('بيانات رئيسية'!D:D,'بيانات رئيسية'!A:A,$E$1,'بيانات رئيسية'!B:B,Khorsheed272803680702[[#This Row],[كود الزبون]]))","v":""}]
[null,{"$f":"IF(Khorsheed272803680702[[#This Row],[كود الزبون]]=\"\",\"\",INDEX('بيانات رئيسية'!C:C,MATCH(1,('بيانات رئيسية'!A:A=$E$1)*('بيانات رئيسية'!B:B=Khorsheed272803680702[[#This Row],[كود الزبون]]),0)))","v":""},{"$f":"IF(Khorsheed272803680702[[#This Row],[كود الزبون]]=\"\",\"\",SUMIFS('بيانات رئيسية'!D:D,'بيانات رئيسية'!A:A,$E$1,'بيانات رئيسية'!B:B,Khorsheed272803680702[[#This Row],[كود الزبون]]))","v":""}]
[null,{"$f":"IF(Khorsheed272803680702[[#This Row],[كود الزبون]]=\"\",\"\",INDEX('بيانات رئيسية'!C:C,MATCH(1,('بيانات رئيسية'!A:A=$E$1)*('بيانات رئيسية'!B:B=Khorsheed272803680702[[#This Row],[كود الزبون]]),0)))","v":""},{"$f":"IF(Khorsheed272803680702[[#This Row],[كود الزبون]]=\"\",\"\",SUMIFS('بيانات رئيسية'!D:D,'بيانات رئيسية'!A:A,$E$1,'بيانات رئيسية'!B:B,Khorsheed272803680702[[#This Row],[كود الزبون]]))","v":""}]
[null,{"$f":"IF(Khorsheed272803680702[[#This Row],[كود الزبون]]=\"\",\"\",INDEX('بيانات رئيسية'!C:C,MATCH(1,('بيانات رئيسية'!A:A=$E$1)*('بيانات رئيسية'!B:B=Khorsheed272803680702[[#This Row],[كود الزبون]]),0)))","v":""},{"$f":"IF(Khorsheed272803680702[[#This Row],[كود الزبون]]=\"\",\"\",SUMIFS('بيانات رئيسية'!D:D,'بيانات رئيسية'!A:A,$E$1,'بيانات رئيسية'!B:B,Khorsheed272803680702[[#This Row],[كود الزبون]]))","v":""}]
[null,{"$f":"IF(Khorsheed272803680702[[#This Row],[كود الزبون]]=\"\",\"\",INDEX('بيانات رئيسية'!C:C,MATCH(1,('بيانات رئيسية'!A:A=$E$1)*('بيانات رئيسية'!B:B=Khorsheed272803680702[[#This Row],[كود الزبون]]),0)))","v":""},{"$f":"IF(Khorsheed272803680702[[#This Row],[كود الزبون]]=\"\",\"\",SUMIFS('بيانات رئيسية'!D:D,'بيانات رئيسية'!A:A,$E$1,'بيانات رئيسية'!B:B,Khorsheed272803680702[[#This Row],[كود الزبون]]))","v":""}]
[null,{"$f":"IF(Khorsheed272803680702[[#This Row],[كود الزبون]]=\"\",\"\",INDEX('بيانات رئيسية'!C:C,MATCH(1,('بيانات رئيسية'!A:A=$E$1)*('بيانات رئيسية'!B:B=Khorsheed272803680702[[#This Row],[كود الزبون]]),0)))","v":""},{"$f":"IF(Khorsheed272803680702[[#This Row],[كود الزبون]]=\"\",\"\",SUMIFS('بيانات رئيسية'!D:D,'بيانات رئيسية'!A:A,$E$1,'بيانات رئيسية'!B:B,Khorsheed272803680702[[#This Row],[كود الزبون]]))","v":""}]
[null,{"$f":"IF(Khorsheed272803680702[[#This Row],[كود الزبون]]=\"\",\"\",INDEX('بيانات رئيسية'!C:C,MATCH(1,('بيانات رئيسية'!A:A=$E$1)*('بيانات رئيسية'!B:B=Khorsheed272803680702[[#This Row],[كود الزبون]]),0)))","v":""},{"$f":"IF(Khorsheed272803680702[[#This Row],[كود الزبون]]=\"\",\"\",SUMIFS('بيانات رئيسية'!D:D,'بيانات رئيسية'!A:A,$E$1,'بيانات رئيسية'!B:B,Khorsheed272803680702[[#This Row],[كود الزبون]]))","v":""}]
[null,{"$f":"IF(Khorsheed272803680702[[#This Row],[كود الزبون]]=\"\",\"\",INDEX('بيانات رئيسية'!C:C,MATCH(1,('بيانات رئيسية'!A:A=$E$1)*('بيانات رئيسية'!B:B=Khorsheed272803680702[[#This Row],[كود الزبون]]),0)))","v":""},{"$f":"IF(Khorsheed272803680702[[#This Row],[كود الزبون]]=\"\",\"\",SUMIFS('بيانات رئيسية'!D:D,'بيانات رئيسية'!A:A,$E$1,'بيانات رئيسية'!B:B,Khorsheed272803680702[[#This Row],[كود الزبون]]))","v":""}]
[null,{"$f":"IF(Khorsheed272803680702[[#This Row],[كود الزبون]]=\"\",\"\",INDEX('بيانات رئيسية'!C:C,MATCH(1,('بيانات رئيسية'!A:A=$E$1)*('بيانات رئيسية'!B:B=Khorsheed272803680702[[#This Row],[كود الزبون]]),0)))","v":""},{"$f":"IF(Khorsheed272803680702[[#This Row],[كود الزبون]]=\"\",\"\",SUMIFS('بيانات رئيسية'!D:D,'بيانات رئيسية'!A:A,$E$1,'بيانات رئيسية'!B:B,Khorsheed272803680702[[#This Row],[كود الزبون]]))","v":""}]
[null,{"$f":"IF(Khorsheed272803680702[[#This Row],[كود الزبون]]=\"\",\"\",INDEX('بيانات رئيسية'!C:C,MATCH(1,('بيانات رئيسية'!A:A=$E$1)*('بيانات رئيسية'!B:B=Khorsheed272803680702[[#This Row],[كود الزبون]]),0)))","v":""},{"$f":"IF(Khorsheed272803680702[[#This Row],[كود الزبون]]=\"\",\"\",SUMIFS('بيانات رئيسية'!D:D,'بيانات رئيسية'!A:A,$E$1,'بيانات رئيسية'!B:B,Khorsheed272803680702[[#This Row],[كود الزبون]]))","v":""}]
[null,{"$f":"IF(Khorsheed272803680702[[#This Row],[كود الزبون]]=\"\",\"\",INDEX('بيانات رئيسية'!C:C,MATCH(1,('بيانات رئيسية'!A:A=$E$1)*('بيانات رئيسية'!B:B=Khorsheed272803680702[[#This Row],[كود الزبون]]),0)))","v":""},{"$f":"IF(Khorsheed272803680702[[#This Row],[كود الزبون]]=\"\",\"\",SUMIFS('بيانات رئيسية'!D:D,'بيانات رئيسية'!A:A,$E$1,'بيانات رئيسية'!B:B,Khorsheed272803680702[[#This Row],[كود الزبون]]))","v":""}]
[null,{"$f":"IF(Khorsheed272803680702[[#This Row],[كود الزبون]]=\"\",\"\",INDEX('بيانات رئيسية'!C:C,MATCH(1,('بيانات رئيسية'!A:A=$E$1)*('بيانات رئيسية'!B:B=Khorsheed272803680702[[#This Row],[كود الزبون]]),0)))","v":""},{"$f":"IF(Khorsheed272803680702[[#This Row],[كود الزبون]]=\"\",\"\",SUMIFS('بيانات رئيسية'!D:D,'بيانات رئيسية'!A:A,$E$1,'بيانات رئيسية'!B:B,Khorsheed272803680702[[#This Row],[كود الزبون]]))","v":""}]
[null,{"$f":"IF(Khorsheed272803680702[[#This Row],[كود الزبون]]=\"\",\"\",INDEX('بيانات رئيسية'!C:C,MATCH(1,('بيانات رئيسية'!A:A=$E$1)*('بيانات رئيسية'!B:B=Khorsheed272803680702[[#This Row],[كود الزبون]]),0)))","v":""},{"$f":"IF(Khorsheed272803680702[[#This Row],[كود الزبون]]=\"\",\"\",SUMIFS('بيانات رئيسية'!D:D,'بيانات رئيسية'!A:A,$E$1,'بيانات رئيسية'!B:B,Khorsheed272803680702[[#This Row],[كود الزبون]]))","v":""}]
[null,{"$f":"IF(Khorsheed272803680702[[#This Row],[كود الزبون]]=\"\",\"\",INDEX('بيانات رئيسية'!C:C,MATCH(1,('بيانات رئيسية'!A:A=$E$1)*('بيانات رئيسية'!B:B=Khorsheed272803680702[[#This Row],[كود الزبون]]),0)))","v":""},{"$f":"IF(Khorsheed272803680702[[#This Row],[كود الزبون]]=\"\",\"\",SUMIFS('بيانات رئيسية'!D:D,'بيانات رئيسية'!A:A,$E$1,'بيانات رئيسية'!B:B,Khorsheed272803680702[[#This Row],[كود الزبون]]))","v":""}]
["الإجمالي",null,{"$f":"SUBTOTAL(109,Khorsheed272803680702[المبلغ])","v":6500000}]

{"sheet":"3-JAN","index":3,"n_rows":30,"n_cols":5,"rows_kept":30,"cut":false,"hidden":false,"merged":[]}
["كود الزبون","الزبون","المبلغ",null,"2024-01-03"]
[2233,{"$f":"IF(Khorsheed2728036807023[[#This Row],[كود الزبون]]=\"\",\"\",INDEX('بيانات رئيسية'!C:C,MATCH(1,('بيانات رئيسية'!A:A=$E$1)*('بيانات رئيسية'!B:B=Khorsheed2728036807023[[#This Row],[كود الزبون]]),0)))","v":"الشركة العربية"},{"$f":"IF(Khorsheed2728036807023[[#This Row],[كود الزبون]]=\"\",\"\",SUMIFS('بيانات رئيسية'!D:D,'بيانات رئيسية'!A:A,$E$1,'بيانات رئيسية'!B:B,Khorsheed2728036807023[[#This Row],[كود الزبون]]))","v":7500000}]
[null,{"$f":"IF(Khorsheed2728036807023[[#This Row],[كود الزبون]]=\"\",\"\",INDEX('بيانات رئيسية'!C:C,MATCH(1,('بيانات رئيسية'!A:A=$E$1)*('بيانات رئيسية'!B:B=Khorsheed2728036807023[[#This Row],[كود الزبون]]),0)))","v":""},{"$f":"IF(Khorsheed2728036807023[[#This Row],[كود الزبون]]=\"\",\"\",SUMIFS('بيانات رئيسية'!D:D,'بيانات رئيسية'!A:A,$E$1,'بيانات رئيسية'!B:B,Khorsheed2728036807023[[#This Row],[كود الزبون]]))","v":""}]
[null,{"$f":"IF(Khorsheed2728036807023[[#This Row],[كود الزبون]]=\"\",\"\",INDEX('بيانات رئيسية'!C:C,MATCH(1,('بيانات رئيسية'!A:A=$E$1)*('بيانات رئيسية'!B:B=Khorsheed2728036807023[[#This Row],[كود الزبون]]),0)))","v":""},{"$f":"IF(Khorsheed2728036807023[[#This Row],[كود الزبون]]=\"\",\"\",SUMIFS('بيانات رئيسية'!D:D,'بيانات رئيسية'!A:A,$E$1,'بيانات رئيسية'!B:B,Khorsheed2728036807023[[#This Row],[كود الزبون]]))","v":""}]
[null,{"$f":"IF(Khorsheed2728036807023[[#This Row],[كود الزبون]]=\"\",\"\",INDEX('بيانات رئيسية'!C:C,MATCH(1,('بيانات رئيسية'!A:A=$E$1)*('بيانات رئيسية'!B:B=Khorsheed2728036807023[[#This Row],[كود الزبون]]),0)))","v":""},{"$f":"IF(Khorsheed2728036807023[[#This Row],[كود الزبون]]=\"\",\"\",SUMIFS('بيانات رئيسية'!D:D,'بيانات رئيسية'!A:A,$E$1,'بيانات رئيسية'!B:B,Khorsheed2728036807023[[#This Row],[كود الزبون]]))","v":""}]
[null,{"$f":"IF(Khorsheed2728036807023[[#This Row],[كود الزبون]]=\"\",\"\",INDEX('بيانات رئيسية'!C:C,MATCH(1,('بيانات رئيسية'!A:A=$E$1)*('بيانات رئيسية'!B:B=Khorsheed2728036807023[[#This Row],[كود الزبون]]),0)))","v":""},{"$f":"IF(Khorsheed2728036807023[[#This Row],[كود الزبون]]=\"\",\"\",SUMIFS('بيانات رئيسية'!D:D,'بيانات رئيسية'!A:A,$E$1,'بيانات رئيسية'!B:B,Khorsheed2728036807023[[#This Row],[كود الزبون]]))","v":""}]
[null,{"$f":"IF(Khorsheed2728036807023[[#This Row],[كود الزبون]]=\"\",\"\",INDEX('بيانات رئيسية'!C:C,MATCH(1,('بيانات رئيسية'!A:A=$E$1)*('بيانات رئيسية'!B:B=Khorsheed2728036807023[[#This Row],[كود الزبون]]),0)))","v":""},{"$f":"IF(Khorsheed2728036807023[[#This Row],[كود الزبون]]=\"\",\"\",SUMIFS('بيانات رئيسية'!D:D,'بيانات رئيسية'!A:A,$E$1,'بيانات رئيسية'!B:B,Khorsheed2728036807023[[#This Row],[كود الزبون]]))","v":""}]
[null,{"$f":"IF(Khorsheed2728036807023[[#This Row],[كود الزبون]]=\"\",\"\",INDEX('بيانات رئيسية'!C:C,MATCH(1,('بيانات رئيسية'!A:A=$E$1)*('بيانات رئيسية'!B:B=Khorsheed2728036807023[[#This Row],[كود الزبون]]),0)))","v":""},{"$f":"IF(Khorsheed2728036807023[[#This Row],[كود الزبون]]=\"\",\"\",SUMIFS('بيانات رئيسية'!D:D,'بيانات رئيسية'!A:A,$E$1,'بيانات رئيسية'!B:B,Khorsheed2728036807023[[#This Row],[كود الزبون]]))","v":""}]
[null,{"$f":"IF(Khorsheed2728036807023[[#This Row],[كود الزبون]]=\"\",\"\",INDEX('بيانات رئيسية'!C:C,MATCH(1,('بيانات رئيسية'!A:A=$E$1)*('بيانات رئيسية'!B:B=Khorsheed2728036807023[[#This Row],[كود الزبون]]),0)))","v":""},{"$f":"IF(Khorsheed2728036807023[[#This Row],[كود الزبون]]=\"\",\"\",SUMIFS('بيانات رئيسية'!D:D,'بيانات رئيسية'!A:A,$E$1,'بيانات رئيسية'!B:B,Khorsheed2728036807023[[#This Row],[كود الزبون]]))","v":""}]
[null,{"$f":"IF(Khorsheed2728036807023[[#This Row],[كود الزبون]]=\"\",\"\",INDEX('بيانات رئيسية'!C:C,MATCH(1,('بيانات رئيسية'!A:A=$E$1)*('بيانات رئيسية'!B:B=Khorsheed2728036807023[[#This Row],[كود الزبون]]),0)))","v":""},{"$f":"IF(Khorsheed2728036807023[[#This Row],[كود الزبون]]=\"\",\"\",SUMIFS('بيانات رئيسية'!D:D,'بيانات رئيسية'!A:A,$E$1,'بيانات رئيسية'!B:B,Khorsheed2728036807023[[#This Row],[كود الزبون]]))","v":""}]
[null,{"$f":"IF(Khorsheed2728036807023[[#This Row],[كود الزبون]]=\"\",\"\",INDEX('بيانات رئيسية'!C:C,MATCH(1,('بيانات رئيسية'!A:A=$E$1)*('بيانات رئيسية'!B:B=Khorsheed2728036807023[[#This Row],[كود الزبون]]),0)))","v":""},{"$f":"IF(Khorsheed2728036807023[[#This Row],[كود الزبون]]=\"\",\"\",SUMIFS('بيانات رئيسية'!D:D,'بيانات رئيسية'!A:A,$E$1,'بيانات رئيسية'!B:B,Khorsheed2728036807023[[#This Row],[كود الزبون]]))","v":""}]
[null,{"$f":"IF(Khorsheed2728036807023[[#This Row],[كود الزبون]]=\"\",\"\",INDEX('بيانات رئيسية'!C:C,MATCH(1,('بيانات رئيسية'!A:A=$E$1)*('بيانات رئيسية'!B:B=Khorsheed2728036807023[[#This Row],[كود الزبون]]),0)))","v":""},{"$f":"IF(Khorsheed2728036807023[[#This Row],[كود الزبون]]=\"\",\"\",SUMIFS('بيانات رئيسية'!D:D,'بيانات رئيسية'!A:A,$E$1,'بيانات رئيسية'!B:B,Khorsheed2728036807023[[#This Row],[كود الزبون]]))","v":""}]
[null,{"$f":"IF(Khorsheed2728036807023[[#This Row],[كود الزبون]]=\"\",\"\",INDEX('بيانات رئيسية'!C:C,MATCH(1,('بيانات رئيسية'!A:A=$E$1)*('بيانات رئيسية'!B:B=Khorsheed2728036807023[[#This Row],[كود الزبون]]),0)))","v":""},{"$f":"IF(Khorsheed2728036807023[[#This Row],[كود الزبون]]=\"\",\"\",SUMIFS('بيانات رئيسية'!D:D,'بيانات رئيسية'!A:A,$E$1,'بيانات رئيسية'!B:B,Khorsheed2728036807023[[#This Row],[كود الزبون]]))","v":""}]
[null,{"$f":"IF(Khorsheed2728036807023[[#This Row],[كود الزبون]]=\"\",\"\",INDEX('بيانات رئيسية'!C:C,MATCH(1,('بيانات رئيسية'!A:A=$E$1)*('بيانات رئيسية'!B:B=Khorsheed2728036807023[[#This Row],[كود الزبون]]),0)))","v":""},{"$f":"IF(Khorsheed2728036807023[[#This Row],[كود الزبون]]=\"\",\"\",SUMIFS('بيانات رئيسية'!D:D,'بيانات رئيسية'!A:A,$E$1,'بيانات رئيسية'!B:B,Khorsheed2728036807023[[#This Row],[كود الزبون]]))","v":""}]
[null,{"$f":"IF(Khorsheed2728036807023[[#This Row],[كود الزبون]]=\"\",\"\",INDEX('بيانات رئيسية'!C:C,MATCH(1,('بيانات رئيسية'!A:A=$E$1)*('بيانات رئيسية'!B:B=Khorsheed2728036807023[[#This Row],[كود الزبون]]),0)))","v":""},{"$f":"IF(Khorsheed2728036807023[[#This Row],[كود الزبون]]=\"\",\"\",SUMIFS('بيانات رئيسية'!D:D,'بيانات رئيسية'!A:A,$E$1,'بيانات رئيسية'!B:B,Khorsheed2728036807023[[#This Row],[كود الزبون]]))","v":""}]
[null,{"$f":"IF(Khorsheed2728036807023[[#This Row],[كود الزبون]]=\"\",\"\",INDEX('بيانات رئيسية'!C:C,MATCH(1,('بيانات رئيسية'!A:A=$E$1)*('بيانات رئيسية'!B:B=Khorsheed2728036807023[[#This Row],[كود الزبون]]),0)))","v":""},{"$f":"IF(Khorsheed2728036807023[[#This Row],[كود الزبون]]=\"\",\"\",SUMIFS('بيانات رئيسية'!D:D,'بيانات رئيسية'!A:A,$E$1,'بيانات رئيسية'!B:B,Khorsheed2728036807023[[#This Row],[كود الزبون]]))","v":""}]
[null,{"$f":"IF(Khorsheed2728036807023[[#This Row],[كود الزبون]]=\"\",\"\",INDEX('بيانات رئيسية'!C:C,MATCH(1,('بيانات رئيسية'!A:A=$E$1)*('بيانات رئيسية'!B:B=Khorsheed2728036807023[[#This Row],[كود الزبون]]),0)))","v":""},{"$f":"IF(Khorsheed2728036807023[[#This Row],[كود الزبون]]=\"\",\"\",SUMIFS('بيانات رئيسية'!D:D,'بيانات رئيسية'!A:A,$E$1,'بيانات رئيسية'!B:B,Khorsheed2728036807023[[#This Row],[كود الزبون]]))","v":""}]
[null,{"$f":"IF(Khorsheed2728036807023[[#This Row],[كود الزبون]]=\"\",\"\",INDEX('بيانات رئيسية'!C:C,MATCH(1,('بيانات رئيسية'!A:A=$E$1)*('بيانات رئيسية'!B:B=Khorsheed2728036807023[[#This Row],[كود الزبون]]),0)))","v":""},{"$f":"IF(Khorsheed2728036807023[[#This Row],[كود الزبون]]=\"\",\"\",SUMIFS('بيانات رئيسية'!D:D,'بيانات رئيسية'!A:A,$E$1,'بيانات رئيسية'!B:B,Khorsheed2728036807023[[#This Row],[كود الزبون]]))","v":""}]
[null,{"$f":"IF(Khorsheed2728036807023[[#This Row],[كود الزبون]]=\"\",\"\",INDEX('بيانات رئيسية'!C:C,MATCH(1,('بيانات رئيسية'!A:A=$E$1)*('بيانات رئيسية'!B:B=Khorsheed2728036807023[[#This Row],[كود الزبون]]),0)))","v":""},{"$f":"IF(Khorsheed2728036807023[[#This Row],[كود الزبون]]=\"\",\"\",SUMIFS('بيانات رئيسية'!D:D,'بيانات رئيسية'!A:A,$E$1,'بيانات رئيسية'!B:B,Khorsheed2728036807023[[#This Row],[كود الزبون]]))","v":""}]
[null,{"$f":"IF(Khorsheed2728036807023[[#This Row],[كود الزبون]]=\"\",\"\",INDEX('بيانات رئيسية'!C:C,MATCH(1,('بيانات رئيسية'!A:A=$E$1)*('بيانات رئيسية'!B:B=Khorsheed2728036807023[[#This Row],[كود الزبون]]),0)))","v":""},{"$f":"IF(Khorsheed2728036807023[[#This Row],[كود الزبون]]=\"\",\"\",SUMIFS('بيانات رئيسية'!D:D,'بيانات رئيسية'!A:A,$E$1,'بيانات رئيسية'!B:B,Khorsheed2728036807023[[#This Row],[كود الزبون]]))","v":""}]
[null,{"$f":"IF(Khorsheed2728036807023[[#This Row],[كود الزبون]]=\"\",\"\",INDEX('بيانات رئيسية'!C:C,MATCH(1,('بيانات رئيسية'!A:A=$E$1)*('بيانات رئيسية'!B:B=Khorsheed2728036807023[[#This Row],[كود الزبون]]),0)))","v":""},{"$f":"IF(Khorsheed2728036807023[[#This Row],[كود الزبون]]=\"\",\"\",SUMIFS('بيانات رئيسية'!D:D,'بيانات رئيسية'!A:A,$E$1,'بيانات رئيسية'!B:B,Khorsheed2728036807023[[#This Row],[كود الزبون]]))","v":""}]
[null,{"$f":"IF(Khorsheed2728036807023[[#This Row],[كود الزبون]]=\"\",\"\",INDEX('بيانات رئيسية'!C:C,MATCH(1,('بيانات رئيسية'!A:A=$E$1)*('بيانات رئيسية'!B:B=Khorsheed2728036807023[[#This Row],[كود الزبون]]),0)))","v":""},{"$f":"IF(Khorsheed2728036807023[[#This Row],[كود الزبون]]=\"\",\"\",SUMIFS('بيانات رئيسية'!D:D,'بيانات رئيسية'!A:A,$E$1,'بيانات رئيسية'!B:B,Khorsheed2728036807023[[#This Row],[كود الزبون]]))","v":""}]
[null,{"$f":"IF(Khorsheed2728036807023[[#This Row],[كود الزبون]]=\"\",\"\",INDEX('بيانات رئيسية'!C:C,MATCH(1,('بيانات رئيسية'!A:A=$E$1)*('بيانات رئيسية'!B:B=Khorsheed2728036807023[[#This Row],[كود الزبون]]),0)))","v":""},{"$f":"IF(Khorsheed2728036807023[[#This Row],[كود الزبون]]=\"\",\"\",SUMIFS('بيانات رئيسية'!D:D,'بيانات رئيسية'!A:A,$E$1,'بيانات رئيسية'!B:B,Khorsheed2728036807023[[#This Row],[كود الزبون]]))","v":""}]
[null,{"$f":"IF(Khorsheed2728036807023[[#This Row],[كود الزبون]]=\"\",\"\",INDEX('بيانات رئيسية'!C:C,MATCH(1,('بيانات رئيسية'!A:A=$E$1)*('بيانات رئيسية'!B:B=Khorsheed2728036807023[[#This Row],[كود الزبون]]),0)))","v":""},{"$f":"IF(Khorsheed2728036807023[[#This Row],[كود الزبون]]=\"\",\"\",SUMIFS('بيانات رئيسية'!D:D,'بيانات رئيسية'!A:A,$E$1,'بيانات رئيسية'!B:B,Khorsheed2728036807023[[#This Row],[كود الزبون]]))","v":""}]
[null,{"$f":"IF(Khorsheed2728036807023[[#This Row],[كود الزبون]]=\"\",\"\",INDEX('بيانات رئيسية'!C:C,MATCH(1,('بيانات رئيسية'!A:A=$E$1)*('بيانات رئيسية'!B:B=Khorsheed2728036807023[[#This Row],[كود الزبون]]),0)))","v":""},{"$f":"IF(Khorsheed2728036807023[[#This Row],[كود الزبون]]=\"\",\"\",SUMIFS('بيانات رئيسية'!D:D,'بيانات رئيسية'!A:A,$E$1,'بيانات رئيسية'!B:B,Khorsheed2728036807023[[#This Row],[كود الزبون]]))","v":""}]
[null,{"$f":"IF(Khorsheed2728036807023[[#This Row],[كود الزبون]]=\"\",\"\",INDEX('بيانات رئيسية'!C:C,MATCH(1,('بيانات رئيسية'!A:A=$E$1)*('بيانات رئيسية'!B:B=Khorsheed2728036807023[[#This Row],[كود الزبون]]),0)))","v":""},{"$f":"IF(Khorsheed2728036807023[[#This Row],[كود الزبون]]=\"\",\"\",SUMIFS('بيانات رئيسية'!D:D,'بيانات رئيسية'!A:A,$E$1,'بيانات رئيسية'!B:B,Khorsheed2728036807023[[#This Row],[كود الزبون]]))","v":""}]
[null,{"$f":"IF(Khorsheed2728036807023[[#This Row],[كود الزبون]]=\"\",\"\",INDEX('بيانات رئيسية'!C:C,MATCH(1,('بيانات رئيسية'!A:A=$E$1)*('بيانات رئيسية'!B:B=Khorsheed2728036807023[[#This Row],[كود الزبون]]),0)))","v":""},{"$f":"IF(Khorsheed2728036807023[[#This Row],[كود الزبون]]=\"\",\"\",SUMIFS('بيانات رئيسية'!D:D,'بيانات رئيسية'!A:A,$E$1,'بيانات رئيسية'!B:B,Khorsheed2728036807023[[#This Row],[كود الزبون]]))","v":""}]
[null,{"$f":"IF(Khorsheed2728036807023[[#This Row],[كود الزبون]]=\"\",\"\",INDEX('بيانات رئيسية'!C:C,MATCH(1,('بيانات رئيسية'!A:A=$E$1)*('بيانات رئيسية'!B:B=Khorsheed2728036807023[[#This Row],[كود الزبون]]),0)))","v":""},{"$f":"IF(Khorsheed2728036807023[[#This Row],[كود الزبون]]=\"\",\"\",SUMIFS('بيانات رئيسية'!D:D,'بيانات رئيسية'!A:A,$E$1,'بيانات رئيسية'!B:B,Khorsheed2728036807023[[#This Row],[كود الزبون]]))","v":""}]
[null,{"$f":"IF(Khorsheed2728036807023[[#This Row],[كود الزبون]]=\"\",\"\",INDEX('بيانات رئيسية'!C:C,MATCH(1,('بيانات رئيسية'!A:A=$E$1)*('بيانات رئيسية'!B:B=Khorsheed2728036807023[[#This Row],[كود الزبون]]),0)))","v":""},{"$f":"IF(Khorsheed2728036807023[[#This Row],[كود الزبون]]=\"\",\"\",SUMIFS('بيانات رئيسية'!D:D,'بيانات رئيسية'!A:A,$E$1,'بيانات رئيسية'!B:B,Khorsheed2728036807023[[#This Row],[كود الزبون]]))","v":""}]
["الإجمالي",null,{"$f":"SUBTOTAL(109,Khorsheed2728036807023[المبلغ])","v":7500000}]

{"sheet":"4-JAN","index":4,"n_rows":30,"n_cols":5,"rows_kept":30,"cut":false,"hidden":false,"merged":[]}
["كود الزبون","الزبون","المبلغ",null,"2024-01-04"]
[1188,{"$f":"IF(Khorsheed27280368070234[[#This Row],[كود الزبون]]=\"\",\"\",INDEX('بيانات رئيسية'!C:C,MATCH(1,('بيانات رئيسية'!A:A=$E$1)*('بيانات رئيسية'!B:B=Khorsheed27280368070234[[#This Row],[كود الزبون]]),0)))","v":"الشركة المتحدة"},{"$f":"IF(Khorsheed27280368070234[[#This Row],[كود الزبون]]=\"\",\"\",SUMIFS('بيانات رئيسية'!D:D,'بيانات رئيسية'!A:A,$E$1,'بيانات رئيسية'!B:B,Khorsheed27280368070234[[#This Row],[كود الزبون]]))","v":9450000}]
[null,{"$f":"IF(Khorsheed27280368070234[[#This Row],[كود الزبون]]=\"\",\"\",INDEX('بيانات رئيسية'!C:C,MATCH(1,('بيانات رئيسية'!A:A=$E$1)*('بيانات رئيسية'!B:B=Khorsheed27280368070234[[#This Row],[كود الزبون]]),0)))","v":""},{"$f":"IF(Khorsheed27280368070234[[#This Row],[كود الزبون]]=\"\",\"\",SUMIFS('بيانات رئيسية'!D:D,'بيانات رئيسية'!A:A,$E$1,'بيانات رئيسية'!B:B,Khorsheed27280368070234[[#This Row],[كود الزبون]]))","v":""}]
[null,{"$f":"IF(Khorsheed27280368070234[[#This Row],[كود الزبون]]=\"\",\"\",INDEX('بيانات رئيسية'!C:C,MATCH(1,('بيانات رئيسية'!A:A=$E$1)*('بيانات رئيسية'!B:B=Khorsheed27280368070234[[#This Row],[كود الزبون]]),0)))","v":""},{"$f":"IF(Khorsheed27280368070234[[#This Row],[كود الزبون]]=\"\",\"\",SUMIFS('بيانات رئيسية'!D:D,'بيانات رئيسية'!A:A,$E$1,'بيانات رئيسية'!B:B,Khorsheed27280368070234[[#This Row],[كود الزبون]]))","v":""}]
[null,{"$f":"IF(Khorsheed27280368070234[[#This Row],[كود الزبون]]=\"\",\"\",INDEX('بيانات رئيسية'!C:C,MATCH(1,('بيانات رئيسية'!A:A=$E$1)*('بيانات رئيسية'!B:B=Khorsheed27280368070234[[#This Row],[كود الزبون]]),0)))","v":""},{"$f":"IF(Khorsheed27280368070234[[#This Row],[كود الزبون]]=\"\",\"\",SUMIFS('بيانات رئيسية'!D:D,'بيانات رئيسية'!A:A,$E$1,'بيانات رئيسية'!B:B,Khorsheed27280368070234[[#This Row],[كود الزبون]]))","v":""}]
[null,{"$f":"IF(Khorsheed27280368070234[[#This Row],[كود الزبون]]=\"\",\"\",INDEX('بيانات رئيسية'!C:C,MATCH(1,('بيانات رئيسية'!A:A=$E$1)*('بيانات رئيسية'!B:B=Khorsheed27280368070234[[#This Row],[كود الزبون]]),0)))","v":""},{"$f":"IF(Khorsheed27280368070234[[#This Row],[كود الزبون]]=\"\",\"\",SUMIFS('بيانات رئيسية'!D:D,'بيانات رئيسية'!A:A,$E$1,'بيانات رئيسية'!B:B,Khorsheed27280368070234[[#This Row],[كود الزبون]]))","v":""}]
[null,{"$f":"IF(Khorsheed27280368070234[[#This Row],[كود الزبون]]=\"\",\"\",INDEX('بيانات رئيسية'!C:C,MATCH(1,('بيانات رئيسية'!A:A=$E$1)*('بيانات رئيسية'!B:B=Khorsheed27280368070234[[#This Row],[كود الزبون]]),0)))","v":""},{"$f":"IF(Khorsheed27280368070234[[#This Row],[كود الزبون]]=\"\",\"\",SUMIFS('بيانات رئيسية'!D:D,'بيانات رئيسية'!A:A,$E$1,'بيانات رئيسية'!B:B,Khorsheed27280368070234[[#This Row],[كود الزبون]]))","v":""}]
[null,{"$f":"IF(Khorsheed27280368070234[[#This Row],[كود الزبون]]=\"\",\"\",INDEX('بيانات رئيسية'!C:C,MATCH(1,('بيانات رئيسية'!A:A=$E$1)*('بيانات رئيسية'!B:B=Khorsheed27280368070234[[#This Row],[كود الزبون]]),0)))","v":""},{"$f":"IF(Khorsheed27280368070234[[#This Row],[كود الزبون]]=\"\",\"\",SUMIFS('بيانات رئيسية'!D:D,'بيانات رئيسية'!A:A,$E$1,'بيانات رئيسية'!B:B,Khorsheed27280368070234[[#This Row],[كود الزبون]]))","v":""}]
[null,{"$f":"IF(Khorsheed27280368070234[[#This Row],[كود الزبون]]=\"\",\"\",INDEX('بيانات رئيسية'!C:C,MATCH(1,('بيانات رئيسية'!A:A=$E$1)*('بيانات رئيسية'!B:B=Khorsheed27280368070234[[#This Row],[كود الزبون]]),0)))","v":""},{"$f":"IF(Khorsheed27280368070234[[#This Row],[كود الزبون]]=\"\",\"\",SUMIFS('بيانات رئيسية'!D:D,'بيانات رئيسية'!A:A,$E$1,'بيانات رئيسية'!B:B,Khorsheed27280368070234[[#This Row],[كود الزبون]]))","v":""}]
[null,{"$f":"IF(Khorsheed27280368070234[[#This Row],[كود الزبون]]=\"\",\"\",INDEX('بيانات رئيسية'!C:C,MATCH(1,('بيانات رئيسية'!A:A=$E$1)*('بيانات رئيسية'!B:B=Khorsheed27280368070234[[#This Row],[كود الزبون]]),0)))","v":""},{"$f":"IF(Khorsheed27280368070234[[#This Row],[كود الزبون]]=\"\",\"\",SUMIFS('بيانات رئيسية'!D:D,'بيانات رئيسية'!A:A,$E$1,'بيانات رئيسية'!B:B,Khorsheed27280368070234[[#This Row],[كود الزبون]]))","v":""}]
[null,{"$f":"IF(Khorsheed27280368070234[[#This Row],[كود الزبون]]=\"\",\"\",INDEX('بيانات رئيسية'!C:C,MATCH(1,('بيانات رئيسية'!A:A=$E$1)*('بيانات رئيسية'!B:B=Khorsheed27280368070234[[#This Row],[كود الزبون]]),0)))","v":""},{"$f":"IF(Khorsheed27280368070234[[#This Row],[كود الزبون]]=\"\",\"\",SUMIFS('بيانات رئيسية'!D:D,'بيانات رئيسية'!A:A,$E$1,'بيانات رئيسية'!B:B,Khorsheed27280368070234[[#This Row],[كود الزبون]]))","v":""}]
[null,{"$f":"IF(Khorsheed27280368070234[[#This Row],[كود الزبون]]=\"\",\"\",INDEX('بيانات رئيسية'!C:C,MATCH(1,('بيانات رئيسية'!A:A=$E$1)*('بيانات رئيسية'!B:B=Khorsheed27280368070234[[#This Row],[كود الزبون]]),0)))","v":""},{"$f":"IF(Khorsheed27280368070234[[#This Row],[كود الزبون]]=\"\",\"\",SUMIFS('بيانات رئيسية'!D:D,'بيانات رئيسية'!A:A,$E$1,'بيانات رئيسية'!B:B,Khorsheed27280368070234[[#This Row],[كود الزبون]]))","v":""}]
[null,{"$f":"IF(Khorsheed27280368070234[[#This Row],[كود الزبون]]=\"\",\"\",INDEX('بيانات رئيسية'!C:C,MATCH(1,('بيانات رئيسية'!A:A=$E$1)*('بيانات رئيسية'!B:B=Khorsheed27280368070234[[#This Row],[كود الزبون]]),0)))","v":""},{"$f":"IF(Khorsheed27280368070234[[#This Row],[كود الزبون]]=\"\",\"\",SUMIFS('بيانات رئيسية'!D:D,'بيانات رئيسية'!A:A,$E$1,'بيانات رئيسية'!B:B,Khorsheed27280368070234[[#This Row],[كود الزبون]]))","v":""}]
[null,{"$f":"IF(Khorsheed27280368070234[[#This Row],[كود الزبون]]=\"\",\"\",INDEX('بيانات رئيسية'!C:C,MATCH(1,('بيانات رئيسية'!A:A=$E$1)*('بيانات رئيسية'!B:B=Khorsheed27280368070234[[#This Row],[كود الزبون]]),0)))","v":""},{"$f":"IF(Khorsheed27280368070234[[#This Row],[كود الزبون]]=\"\",\"\",SUMIFS('بيانات رئيسية'!D:D,'بيانات رئيسية'!A:A,$E$1,'بيانات رئيسية'!B:B,Khorsheed27280368070234[[#This Row],[كود الزبون]]))","v":""}]
[null,{"$f":"IF(Khorsheed27280368070234[[#This Row],[كود الزبون]]=\"\",\"\",INDEX('بيانات رئيسية'!C:C,MATCH(1,('بيانات رئيسية'!A:A=$E$1)*('بيانات رئيسية'!B:B=Khorsheed27280368070234[[#This Row],[كود الزبون]]),0)))","v":""},{"$f":"IF(Khorsheed27280368070234[[#This Row],[كود الزبون]]=\"\",\"\",SUMIFS('بيانات رئيسية'!D:D,'بيانات رئيسية'!A:A,$E$1,'بيانات رئيسية'!B:B,Khorsheed27280368070234[[#This Row],[كود الزبون]]))","v":""}]
[null,{"$f":"IF(Khorsheed27280368070234[[#This Row],[كود الزبون]]=\"\",\"\",INDEX('بيانات رئيسية'!C:C,MATCH(1,('بيانات رئيسية'!A:A=$E$1)*('بيانات رئيسية'!B:B=Khorsheed27280368070234[[#This Row],[كود الزبون]]),0)))","v":""},{"$f":"IF(Khorsheed27280368070234[[#This Row],[كود الزبون]]=\"\",\"\",SUMIFS('بيانات رئيسية'!D:D,'بيانات رئيسية'!A:A,$E$1,'بيانات رئيسية'!B:B,Khorsheed27280368070234[[#This Row],[كود الزبون]]))","v":""}]
[null,{"$f":"IF(Khorsheed27280368070234[[#This Row],[كود الزبون]]=\"\",\"\",INDEX('بيانات رئيسية'!C:C,MATCH(1,('بيانات رئيسية'!A:A=$E$1)*('بيانات رئيسية'!B:B=Khorsheed27280368070234[[#This Row],[كود الزبون]]),0)))","v":""},{"$f":"IF(Khorsheed27280368070234[[#This Row],[كود الزبون]]=\"\",\"\",SUMIFS('بيانات رئيسية'!D:D,'بيانات رئيسية'!A:A,$E$1,'بيانات رئيسية'!B:B,Khorsheed27280368070234[[#This Row],[كود الزبون]]))","v":""}]
[null,{"$f":"IF(Khorsheed27280368070234[[#This Row],[كود الزبون]]=\"\",\"\",INDEX('بيانات رئيسية'!C:C,MATCH(1,('بيانات رئيسية'!A:A=$E$1)*('بيانات رئيسية'!B:B=Khorsheed27280368070234[[#This Row],[كود الزبون]]),0)))","v":""},{"$f":"IF(Khorsheed27280368070234[[#This Row],[كود الزبون]]=\"\",\"\",SUMIFS('بيانات رئيسية'!D:D,'بيانات رئيسية'!A:A,$E$1,'بيانات رئيسية'!B:B,Khorsheed27280368070234[[#This Row],[كود الزبون]]))","v":""}]
[null,{"$f":"IF(Khorsheed27280368070234[[#This Row],[كود الزبون]]=\"\",\"\",INDEX('بيانات رئيسية'!C:C,MATCH(1,('بيانات رئيسية'!A:A=$E$1)*('بيانات رئيسية'!B:B=Khorsheed27280368070234[[#This Row],[كود الزبون]]),0)))","v":""},{"$f":"IF(Khorsheed27280368070234[[#This Row],[كود الزبون]]=\"\",\"\",SUMIFS('بيانات رئيسية'!D:D,'بيانات رئيسية'!A:A,$E$1,'بيانات رئيسية'!B:B,Khorsheed27280368070234[[#This Row],[كود الزبون]]))","v":""}]
[null,{"$f":"IF(Khorsheed27280368070234[[#This Row],[كود الزبون]]=\"\",\"\",INDEX('بيانات رئيسية'!C:C,MATCH(1,('بيانات رئيسية'!A:A=$E$1)*('بيانات رئيسية'!B:B=Khorsheed27280368070234[[#This Row],[كود الزبون]]),0)))","v":""},{"$f":"IF(Khorsheed27280368070234[[#This Row],[كود الزبون]]=\"\",\"\",SUMIFS('بيانات رئيسية'!D:D,'بيانات رئيسية'!A:A,$E$1,'بيانات رئيسية'!B:B,Khorsheed27280368070234[[#This Row],[كود الزبون]]))","v":""}]
[null,{"$f":"IF(Khorsheed27280368070234[[#This Row],[كود الزبون]]=\"\",\"\",INDEX('بيانات رئيسية'!C:C,MATCH(1,('بيانات رئيسية'!A:A=$E$1)*('بيانات رئيسية'!B:B=Khorsheed27280368070234[[#This Row],[كود الزبون]]),0)))","v":""},{"$f":"IF(Khorsheed27280368070234[[#This Row],[كود الزبون]]=\"\",\"\",SUMIFS('بيانات رئيسية'!D:D,'بيانات رئيسية'!A:A,$E$1,'بيانات رئيسية'!B:B,Khorsheed27280368070234[[#This Row],[كود الزبون]]))","v":""}]
[null,{"$f":"IF(Khorsheed27280368070234[[#This Row],[كود الزبون]]=\"\",\"\",INDEX('بيانات رئيسية'!C:C,MATCH(1,('بيانات رئيسية'!A:A=$E$1)*('بيانات رئيسية'!B:B=Khorsheed27280368070234[[#This Row],[كود الزبون]]),0)))","v":""},{"$f":"IF(Khorsheed27280368070234[[#This Row],[كود الزبون]]=\"\",\"\",SUMIFS('بيانات رئيسية'!D:D,'بيانات رئيسية'!A:A,$E$1,'بيانات رئيسية'!B:B,Khorsheed27280368070234[[#This Row],[كود الزبون]]))","v":""}]
[null,{"$f":"IF(Khorsheed27280368070234[[#This Row],[كود الزبون]]=\"\",\"\",INDEX('بيانات رئيسية'!C:C,MATCH(1,('بيانات رئيسية'!A:A=$E$1)*('بيانات رئيسية'!B:B=Khorsheed27280368070234[[#This Row],[كود الزبون]]),0)))","v":""},{"$f":"IF(Khorsheed27280368070234[[#This Row],[كود الزبون]]=\"\",\"\",SUMIFS('بيانات رئيسية'!D:D,'بيانات رئيسية'!A:A,$E$1,'بيانات رئيسية'!B:B,Khorsheed27280368070234[[#This Row],[كود الزبون]]))","v":""}]
[null,{"$f":"IF(Khorsheed27280368070234[[#This Row],[كود الزبون]]=\"\",\"\",INDEX('بيانات رئيسية'!C:C,MATCH(1,('بيانات رئيسية'!A:A=$E$1)*('بيانات رئيسية'!B:B=Khorsheed27280368070234[[#This Row],[كود الزبون]]),0)))","v":""},{"$f":"IF(Khorsheed27280368070234[[#This Row],[كود الزبون]]=\"\",\"\",SUMIFS('بيانات رئيسية'!D:D,'بيانات رئيسية'!A:A,$E$1,'بيانات رئيسية'!B:B,Khorsheed27280368070234[[#This Row],[كود الزبون]]))","v":""}]
[null,{"$f":"IF(Khorsheed27280368070234[[#This Row],[كود الزبون]]=\"\",\"\",INDEX('بيانات رئيسية'!C:C,MATCH(1,('بيانات رئيسية'!A:A=$E$1)*('بيانات رئيسية'!B:B=Khorsheed27280368070234[[#This Row],[كود الزبون]]),0)))","v":""},{"$f":"IF(Khorsheed27280368070234[[#This Row],[كود الزبون]]=\"\",\"\",SUMIFS('بيانات رئيسية'!D:D,'بيانات رئيسية'!A:A,$E$1,'بيانات رئيسية'!B:B,Khorsheed27280368070234[[#This Row],[كود الزبون]]))","v":""}]
[null,{"$f":"IF(Khorsheed27280368070234[[#This Row],[كود الزبون]]=\"\",\"\",INDEX('بيانات رئيسية'!C:C,MATCH(1,('بيانات رئيسية'!A:A=$E$1)*('بيانات رئيسية'!B:B=Khorsheed27280368070234[[#This Row],[كود الزبون]]),0)))","v":""},{"$f":"IF(Khorsheed27280368070234[[#This Row],[كود الزبون]]=\"\",\"\",SUMIFS('بيانات رئيسية'!D:D,'بيانات رئيسية'!A:A,$E$1,'بيانات رئيسية'!B:B,Khorsheed27280368070234[[#This Row],[كود الزبون]]))","v":""}]
[null,{"$f":"IF(Khorsheed27280368070234[[#This Row],[كود الزبون]]=\"\",\"\",INDEX('بيانات رئيسية'!C:C,MATCH(1,('بيانات رئيسية'!A:A=$E$1)*('بيانات رئيسية'!B:B=Khorsheed27280368070234[[#This Row],[كود الزبون]]),0)))","v":""},{"$f":"IF(Khorsheed27280368070234[[#This Row],[كود الزبون]]=\"\",\"\",SUMIFS('بيانات رئيسية'!D:D,'بيانات رئيسية'!A:A,$E$1,'بيانات رئيسية'!B:B,Khorsheed27280368070234[[#This Row],[كود الزبون]]))","v":""}]
[null,{"$f":"IF(Khorsheed27280368070234[[#This Row],[كود الزبون]]=\"\",\"\",INDEX('بيانات رئيسية'!C:C,MATCH(1,('بيانات رئيسية'!A:A=$E$1)*('بيانات رئيسية'!B:B=Khorsheed27280368070234[[#This Row],[كود الزبون]]),0)))","v":""},{"$f":"IF(Khorsheed27280368070234[[#This Row],[كود الزبون]]=\"\",\"\",SUMIFS('بيانات رئيسية'!D:D,'بيانات رئيسية'!A:A,$E$1,'بيانات رئيسية'!B:B,Khorsheed27280368070234[[#This Row],[كود الزبون]]))","v":""}]
[null,{"$f":"IF(Khorsheed27280368070234[[#This Row],[كود الزبون]]=\"\",\"\",INDEX('بيانات رئيسية'!C:C,MATCH(1,('بيانات رئيسية'!A:A=$E$1)*('بيانات رئيسية'!B:B=Khorsheed27280368070234[[#This Row],[كود الزبون]]),0)))","v":""},{"$f":"IF(Khorsheed27280368070234[[#This Row],[كود الزبون]]=\"\",\"\",SUMIFS('بيانات رئيسية'!D:D,'بيانات رئيسية'!A:A,$E$1,'بيانات رئيسية'!B:B,Khorsheed27280368070234[[#This Row],[كود الزبون]]))","v":""}]
["الإجمالي",null,{"$f":"SUBTOTAL(109,Khorsheed27280368070234[المبلغ])","v":9450000}]